[Event "*** Qualifier 2: Titled Tuesday 3|2 Blitz"]
[Site "Chess.com"]
[Date "2017.04.11"]
[Round "7"]
[White "rasmussvane"]
[Black "Bugcrusher"]
[Result "0-1"]
[WhiteElo "2509"]
[BlackElo "2415"]
[TimeControl "180+2"]
[EndTime "14:39:16 PDT"]
[Termination "Bugcrusher won by resignation"]

1. Nf3 {[%clk 0:03:02]} 1... d5 {[%clk 0:03:00.4]} 2. d4 {[%clk 0:03:03.1]} 2...
Nf6 {[%clk 0:03:01.5]} 3. c4 {[%clk 0:03:04.2]} 3... c6 {[%clk 0:03:02.6]} 4. e3
{[%clk 0:03:04.2]} 4... Bf5 {[%clk 0:03:02.8]} 5. Nc3 {[%clk 0:03:05.5]} 5... e6
{[%clk 0:03:03.9]} 6. Nh4 {[%clk 0:03:06.9]} 6... Be4 {[%clk 0:03:04.1]} 7. f3
{[%clk 0:03:08.3]} 7... Bg6 {[%clk 0:03:04.9]} 8. Qb3 {[%clk 0:03:09.6]} 8...
Qb6 {[%clk 0:03:05.7]} 9. Bd2 {[%clk 0:03:01.8]} 9... Qxb3 {[%clk 0:02:58.7]}
10. axb3 {[%clk 0:03:01.1]} 10... Bc2 {[%clk 0:03:00]} 11. cxd5 {[%clk
0:02:36.8]} 11... exd5 {[%clk 0:02:56.5]} 12. Na4 {[%clk 0:02:37.9]} 12... Nbd7
{[%clk 0:02:47.9]} 13. g4 {[%clk 0:02:27.5]} 13... Bxb3 {[%clk 0:02:46.3]} 14.
g5 {[%clk 0:02:28.4]} 14... Nh5 {[%clk 0:02:42.4]} 15. f4 {[%clk 0:02:29.3]}
15... g6 {[%clk 0:02:38]} 16. Bh3 {[%clk 0:02:28.1]} 16... f5 {[%clk 0:02:19.9]}
17. Nf3 {[%clk 0:02:07.9]} 17... Ng7 {[%clk 0:02:04.9]} 18. Ne5 {[%clk
0:02:07.1]} 18... Nxe5 {[%clk 0:02:02.8]} 19. dxe5 {[%clk 0:02:07.2]} 19...
O-O-O {[%clk 0:01:58.7]} 20. Nc3 {[%clk 0:01:58.4]} 20... a6 {[%clk 0:01:52.3]}
21. Ne2 {[%clk 0:01:57]} 21... c5 {[%clk 0:01:37.1]} 22. Ba5 {[%clk 0:01:43]}
22... Rd7 {[%clk 0:01:36]} 23. Rc1 {[%clk 0:01:21.8]} 23... Ne6 {[%clk 0:01:34]}
24. Nd4 {[%clk 0:01:23]} 24... Nxd4 {[%clk 0:01:30.7]} 25. exd4 {[%clk
0:01:24.3]} 25... c4 {[%clk 0:01:32.3]} 26. Bg2 {[%clk 0:01:24.2]} 26... Be7
{[%clk 0:01:31]} 27. Kf2 {[%clk 0:01:24.2]} 27... b5 {[%clk 0:01:19.4]} 28. h4
{[%clk 0:01:17.4]} 28... h5 {[%clk 0:01:18]} 29. e6 {[%clk 0:01:13.6]} 29... Rd6
{[%clk 0:01:13.4]} 30. Bb4 {[%clk 0:01:14.8]} 30... Rxe6 {[%clk 0:00:17.5]} 31.
Bxd5 {[%clk 0:01:15.4]} 31... Rd6 {[%clk 0:00:17.8]} 32. Be6+ {[%clk 0:01:16.9]}
32... Rxe6 {[%clk 0:00:18.5]} 33. d5 {[%clk 0:01:18.2]} 33... Re4 {[%clk
0:00:18.5]} 34. d6 {[%clk 0:01:19.2]} 34... Bd8 {[%clk 0:00:19.1]} 35. Rhe1
{[%clk 0:01:19.2]} 35... Bb6+ {[%clk 0:00:19.9]} 36. Kg3 {[%clk 0:01:19.9]}
36... Rhe8 {[%clk 0:00:21.4]} 37. Rxe4 {[%clk 0:01:10]} 37... Rxe4 {[%clk
0:00:23.3]} 38. Bc3 {[%clk 0:01:11.9]} 38... Kd7 {[%clk 0:00:23.8]} 39. Be5
{[%clk 0:01:12.7]} 39... Bc5 {[%clk 0:00:23.6]} 40. Ra1 {[%clk 0:01:13.7]} 40...
Ba4 {[%clk 0:00:21.7]} 41. Rd1 {[%clk 0:01:14.4]} 0-1

[Event "*** Qualifier 2: Titled Tuesday 3|2 Blitz"]
[Site "Chess.com"]
[Date "2017.04.11"]
[Round "7"]
[White "MasterLeif"]
[Black "Outsmiter"]
[Result "1-0"]
[WhiteElo "2302"]
[BlackElo "2102"]
[TimeControl "180+2"]
[EndTime "14:39:16 PDT"]
[Termination "MasterLeif won by resignation"]

1. d4 {[%clk 0:02:58.4]} 1... d6 {[%clk 0:03:01]} 2. e4 {[%clk 0:02:58.5]} 2...
Nf6 {[%clk 0:03:01.6]} 3. Nc3 {[%clk 0:02:57.7]} 3... g6 {[%clk 0:03:02.7]} 4.
Be2 {[%clk 0:02:49.2]} 4... Bg7 {[%clk 0:03:01]} 5. Nf3 {[%clk 0:02:50]} 5...
O-O {[%clk 0:02:59]} 6. h3 {[%clk 0:02:49.5]} 6... b6 {[%clk 0:02:59.5]} 7. O-O
{[%clk 0:02:48.5]} 7... Nfd7 {[%clk 0:02:44.9]} 8. Be3 {[%clk 0:02:47.8]} 8...
Bb7 {[%clk 0:02:45.5]} 9. Qd2 {[%clk 0:02:47.9]} 9... c5 {[%clk 0:02:45.5]} 10.
Rad1 {[%clk 0:02:46.9]} 10... cxd4 {[%clk 0:02:43.9]} 11. Bxd4 {[%clk
0:02:47.7]} 11... Nc6 {[%clk 0:02:44.1]} 12. Bxg7 {[%clk 0:02:48.4]} 12... Kxg7
{[%clk 0:02:46]} 13. Rfe1 {[%clk 0:02:41.4]} 13... a6 {[%clk 0:02:36.6]} 14. Qe3
{[%clk 0:02:37.6]} 14... Qb8 {[%clk 0:02:24.8]} 15. Nd5 {[%clk 0:02:31.3]} 15...
b5 {[%clk 0:02:24.6]} 16. Nd4 {[%clk 0:02:13.1]} 16... Re8 {[%clk 0:02:18]} 17.
Nxc6 {[%clk 0:02:13]} 17... Bxc6 {[%clk 0:02:19.9]} 18. Qc3+ {[%clk 0:02:14.2]}
18... Ne5 {[%clk 0:02:18.2]} 19. f4 {[%clk 0:02:15.2]} 19... Qa7+ {[%clk
0:02:10.7]} 20. Kh2 {[%clk 0:01:54.7]} 20... Bxd5 {[%clk 0:02:07.7]} 21. fxe5
{[%clk 0:01:45.6]} 21... Rac8 {[%clk 0:02:06.7]} 22. Qd2 {[%clk 0:01:19.8]}
22... Bxe4 {[%clk 0:01:54.2]} 23. exd6 {[%clk 0:01:10.3]} 23... exd6 {[%clk
0:01:38.6]} 24. c3 {[%clk 0:01:09.4]} 24... d5 {[%clk 0:01:36.1]} 25. Rf1 {[%clk
0:00:57.8]} 25... Qc7+ {[%clk 0:01:35.5]} 26. Kh1 {[%clk 0:00:52.4]} 26... Qg3
{[%clk 0:01:33.7]} 27. Bf3 {[%clk 0:00:52.9]} 27... Rc4 {[%clk 0:01:24.1]} 28.
Bxe4 {[%clk 0:00:49.6]} 28... dxe4 {[%clk 0:01:16.9]} 29. Rxf7+ {[%clk
0:00:47.4]} 29... Kxf7 {[%clk 0:01:14]} 30. Qd7+ {[%clk 0:00:48.4]} 30... Kf6
{[%clk 0:00:45]} 31. Qxe8 {[%clk 0:00:40.5]} 31... e3 {[%clk 0:00:35.7]} 32.
Qd8+ {[%clk 0:00:41.3]} 32... Kg7 {[%clk 0:00:32.2]} 33. Rd7+ {[%clk 0:00:39.1]}
33... Kh6 {[%clk 0:00:32.6]} 34. Qf8+ {[%clk 0:00:40.4]} 34... Kg5 {[%clk
0:00:32.2]} 35. Rd5+ {[%clk 0:00:38.7]} 1-0

[Event "*** Qualifier 2: Titled Tuesday 3|2 Blitz"]
[Site "Chess.com"]
[Date "2017.04.11"]
[Round "7"]
[White "TomsKantans"]
[Black "PelinGorki"]
[Result "1-0"]
[WhiteElo "2489"]
[BlackElo "2391"]
[TimeControl "180+2"]
[EndTime "14:39:21 PDT"]
[Termination "TomsKantans won by resignation"]

1. e4 {[%clk 0:02:59]} 1... d6 {[%clk 0:03:01.2]} 2. d4 {[%clk 0:02:59.7]} 2...
Nf6 {[%clk 0:03:01.6]} 3. Nc3 {[%clk 0:03:00.5]} 3... c6 {[%clk 0:03:02.9]} 4.
a4 {[%clk 0:02:59.4]} 4... a5 {[%clk 0:03:02.7]} 5. Nf3 {[%clk 0:02:59.2]} 5...
Bg4 {[%clk 0:03:03.7]} 6. Be3 {[%clk 0:02:55.8]} 6... e6 {[%clk 0:03:04.9]} 7.
h3 {[%clk 0:02:51]} 7... Bh5 {[%clk 0:03:05]} 8. Bd3 {[%clk 0:02:49.6]} 8... d5
{[%clk 0:03:05.9]} 9. O-O {[%clk 0:02:48.1]} 9... Be7 {[%clk 0:03:05.7]} 10. e5
{[%clk 0:02:44.7]} 10... Nfd7 {[%clk 0:03:04.8]} 11. Be2 {[%clk 0:02:45.6]}
11... Na6 {[%clk 0:03:05.1]} 12. Ne1 {[%clk 0:02:30.2]} 12... Bg6 {[%clk
0:03:04.6]} 13. f4 {[%clk 0:02:28.6]} 13... c5 {[%clk 0:03:05.7]} 14. Nb5 {[%clk
0:02:25.1]} 14... cxd4 {[%clk 0:03:04.3]} 15. Nxd4 {[%clk 0:02:25.5]} 15... Be4
{[%clk 0:02:56.7]} 16. Nd3 {[%clk 0:02:20.2]} 16... Ndc5 {[%clk 0:02:56.2]} 17.
Nf2 {[%clk 0:02:20.8]} 17... O-O {[%clk 0:02:47.9]} 18. c3 {[%clk 0:02:21.6]}
18... Rc8 {[%clk 0:02:39.2]} 19. Qd2 {[%clk 0:02:09.3]} 19... Bh4 {[%clk
0:02:36]} 20. b4 {[%clk 0:02:04.9]} 20... Nd7 {[%clk 0:02:24.2]} 21. Nxe4 {[%clk
0:02:03.9]} 21... dxe4 {[%clk 0:02:26.1]} 22. Rfd1 {[%clk 0:01:58.5]} 22... axb4
{[%clk 0:02:16.5]} 23. cxb4 {[%clk 0:01:56.4]} 23... Qe7 {[%clk 0:02:16.8]} 24.
Rab1 {[%clk 0:01:36.6]} 24... Rfd8 {[%clk 0:02:15.5]} 25. a5 {[%clk 0:01:30.5]}
25... Nf8 {[%clk 0:02:05.3]} 26. Qb2 {[%clk 0:01:28.6]} 26... Nc7 {[%clk
0:01:58]} 27. Nb5 {[%clk 0:01:21.3]} 27... Nd5 {[%clk 0:01:58.4]} 28. Bc5 {[%clk
0:01:22.3]} 28... Rxc5 {[%clk 0:01:25.8]} 29. bxc5 {[%clk 0:01:24.2]} 29...
Qxc5+ {[%clk 0:01:27.7]} 30. Qd4 {[%clk 0:01:25.2]} 30... Qxd4+ {[%clk
0:01:03.3]} 31. Rxd4 {[%clk 0:01:26]} 31... Nxf4 {[%clk 0:01:05.2]} 32. Bf1
{[%clk 0:01:03.3]} 32... N8g6 {[%clk 0:00:31.5]} 33. g3 {[%clk 0:00:53.8]} 33...
Bxg3 {[%clk 0:00:19.1]} 1-0

[Event "*** Qualifier 2: Titled Tuesday 3|2 Blitz"]
[Site "Chess.com"]
[Date "2017.04.11"]
[Round "7"]
[White "Indianlad"]
[Black "LawrenceTrent"]
[Result "1-0"]
[WhiteElo "2607"]
[BlackElo "2443"]
[TimeControl "180+2"]
[EndTime "14:39:51 PDT"]
[Termination "Indianlad won by checkmate"]

1. e4 {[%clk 0:03:02]} 1... e5 {[%clk 0:02:59.8]} 2. Nf3 {[%clk 0:03:03.3]} 2...
Nc6 {[%clk 0:03:00.6]} 3. Bb5 {[%clk 0:02:57.2]} 3... a6 {[%clk 0:03:00.6]} 4.
Ba4 {[%clk 0:02:57.8]} 4... Nf6 {[%clk 0:03:01.5]} 5. O-O {[%clk 0:02:57.5]}
5... Bc5 {[%clk 0:02:56.4]} 6. c3 {[%clk 0:02:37.8]} 6... b5 {[%clk 0:02:56.3]}
7. Bb3 {[%clk 0:02:37.6]} 7... d6 {[%clk 0:02:57.4]} 8. d4 {[%clk 0:02:36.2]}
8... Bb6 {[%clk 0:02:58.7]} 9. a4 {[%clk 0:02:37.7]} 9... Bg4 {[%clk 0:02:59.6]}
10. Bg5 {[%clk 0:02:33.2]} 10... Bxf3 {[%clk 0:02:44.9]} 11. Qxf3 {[%clk
0:02:32.7]} 11... exd4 {[%clk 0:02:46.3]} 12. axb5 {[%clk 0:02:13.1]} 12... Ne5
{[%clk 0:02:46.9]} 13. Qd1 {[%clk 0:02:06.9]} 13... d3 {[%clk 0:02:39.2]} 14.
bxa6 {[%clk 0:02:05.5]} 14... h6 {[%clk 0:02:34.6]} 15. Bf4 {[%clk 0:02:01.7]}
15... O-O {[%clk 0:01:32.4]} 16. Nd2 {[%clk 0:01:59.4]} 16... Qc8 {[%clk
0:01:33.4]} 17. Bxe5 {[%clk 0:01:58.3]} 17... dxe5 {[%clk 0:01:34.5]} 18. Bc4
{[%clk 0:01:57.5]} 18... Rd8 {[%clk 0:01:32]} 19. Qf3 {[%clk 0:01:57.1]} 19...
Qd7 {[%clk 0:01:24.4]} 20. h3 {[%clk 0:01:34.5]} 20... Nh7 {[%clk 0:01:22.8]}
21. Qf5 {[%clk 0:01:30.6]} 21... Qe7 {[%clk 0:01:04.8]} 22. Nf3 {[%clk
0:01:31.4]} 22... Ng5 {[%clk 0:00:58]} 23. Nxe5 {[%clk 0:01:29.2]} 23... Rd6
{[%clk 0:00:46.9]} 24. Nxd3 {[%clk 0:01:19.2]} 24... Rf6 {[%clk 0:00:33]} 25.
Qg4 {[%clk 0:01:19.9]} 25... Nxe4 {[%clk 0:00:32.9]} 26. Bd5 {[%clk 0:01:11.7]}
26... Nxf2 {[%clk 0:00:07.7]} 27. Nxf2 {[%clk 0:01:12.9]} 27... Ra7 {[%clk
0:00:08.5]} 28. Bb7 {[%clk 0:01:03.1]} 28... Qe3 {[%clk 0:00:05.1]} 29. Kh1
{[%clk 0:00:58.3]} 29... Rxf2 {[%clk 0:00:05.8]} 30. Rxf2 {[%clk 0:00:58.8]}
30... Qxf2 {[%clk 0:00:07.1]} 31. Qc8+ {[%clk 0:00:57.1]} 31... Kh7 {[%clk
0:00:08.2]} 32. Qe8 {[%clk 0:00:58.7]} 32... g6 {[%clk 0:00:09]} 33. Qb5 {[%clk
0:00:56.5]} 33... c6 {[%clk 0:00:09.3]} 34. Qc4 {[%clk 0:00:56.1]} 34... Bc7
{[%clk 0:00:09.2]} 35. Rf1 {[%clk 0:00:55.8]} 35... Qg3 {[%clk 0:00:10.5]} 36.
Qxf7+ {[%clk 0:00:56.5]} 36... Kh8 {[%clk 0:00:11.8]} 37. Qf8+ {[%clk 0:00:58]}
37... Kh7 {[%clk 0:00:13.4]} 38. Rf7# {[%clk 0:00:59.2]} 1-0

[Event "*** Qualifier 2: Titled Tuesday 3|2 Blitz"]
[Site "Chess.com"]
[Date "2017.04.11"]
[Round "7"]
[White "Marcus_Harvey"]
[Black "FairChess_on_YouTube"]
[Result "0-1"]
[WhiteElo "2513"]
[BlackElo "2698"]
[TimeControl "180+2"]
[EndTime "14:39:52 PDT"]
[Termination "FairChess_on_YouTube won on time"]

1. Nf3 {[%clk 0:03:02]} 1... b5 {[%clk 0:02:58.8]} 2. e4 {[%clk 0:03:00]} 2...
Bb7 {[%clk 0:02:59.8]} 3. Bxb5 {[%clk 0:03:01]} 3... Bxe4 {[%clk 0:03:00.7]} 4.
O-O {[%clk 0:03:02.3]} 4... c6 {[%clk 0:03:01]} 5. Ba4 {[%clk 0:03:02.3]} 5...
Nf6 {[%clk 0:03:01.5]} 6. Nc3 {[%clk 0:03:03.6]} 6... Bxf3 {[%clk 0:03:00.8]} 7.
Qxf3 {[%clk 0:03:04]} 7... e6 {[%clk 0:02:59.8]} 8. d4 {[%clk 0:03:05]} 8... d5
{[%clk 0:02:58.4]} 9. Ne2 {[%clk 0:02:59.6]} 9... Bd6 {[%clk 0:02:52.9]} 10. Bf4
{[%clk 0:02:56.9]} 10... O-O {[%clk 0:02:53.2]} 11. c3 {[%clk 0:02:58]} 11...
Ne4 {[%clk 0:02:52.1]} 12. Bc2 {[%clk 0:02:52.1]} 12... Nf6 {[%clk 0:02:44.4]}
13. Bg5 {[%clk 0:02:48]} 13... Nbd7 {[%clk 0:02:42.9]} 14. Qh3 {[%clk
0:02:29.5]} 14... Qb8 {[%clk 0:02:37.2]} 15. b4 {[%clk 0:02:21.7]} 15... a5
{[%clk 0:02:36.5]} 16. a3 {[%clk 0:02:23.2]} 16... Qc7 {[%clk 0:02:29.7]} 17.
Qh4 {[%clk 0:01:56.7]} 17... Ra7 {[%clk 0:02:21.9]} 18. Ng3 {[%clk 0:01:54]}
18... Rfa8 {[%clk 0:02:21.7]} 19. Rac1 {[%clk 0:01:15.3]} 19... axb4 {[%clk
0:02:21]} 20. axb4 {[%clk 0:01:17.2]} 20... Ra2 {[%clk 0:02:19]} 21. Bd3 {[%clk
0:01:17.6]} 21... R8a3 {[%clk 0:02:09.6]} 22. Nh5 {[%clk 0:01:17.6]} 22... Nxh5
{[%clk 0:02:07.9]} 23. Qxh5 {[%clk 0:01:15.9]} 23... g6 {[%clk 0:02:09.1]} 24.
Qh4 {[%clk 0:01:11.6]} 24... Rb2 {[%clk 0:01:50.8]} 25. Ra1 {[%clk 0:01:06.2]}
25... Rxc3 {[%clk 0:01:30.9]} 26. Ra8+ {[%clk 0:01:06.8]} 26... Nb8 {[%clk
0:01:31.9]} 27. Bh6 {[%clk 0:00:17.3]} 27... Rxb4 {[%clk 0:01:10.8]} 28. Qf6
{[%clk 0:00:14.9]} 28... Bf8 {[%clk 0:01:11.7]} 29. Bxf8 {[%clk 0:00:10.9]}
29... Kxf8 {[%clk 0:01:13.6]} 30. Qh8+ {[%clk 0:00:09.3]} 30... Ke7 {[%clk
0:01:13.8]} 31. Be2 {[%clk 0:00:06.4]} 31... Qb7 {[%clk 0:00:55.5]} 32. Rfa1
{[%clk 0:00:04.5]} 32... Rb1+ {[%clk 0:00:55.8]} 33. Bf1 {[%clk 0:00:05]} 33...
Rcc1 {[%clk 0:00:44.9]} 34. Rxb1 {[%clk 0:00:06.2]} 34... Rxb1 {[%clk 0:00:36]}
35. Ra2 {[%clk 0:00:02.8]} 35... Rxf1+ {[%clk 0:00:34.8]} 0-1

[Event "*** Qualifier 2: Titled Tuesday 3|2 Blitz"]
[Site "Chess.com"]
[Date "2017.04.11"]
[Round "7"]
[White "wonderfultime"]
[Black "FelixBlohberger"]
[Result "0-1"]
[WhiteElo "2646"]
[BlackElo "2256"]
[TimeControl "180+2"]
[EndTime "14:40:14 PDT"]
[Termination "FelixBlohberger won on time"]

1. d4 {[%clk 0:02:56.7]} 1... Nf6 {[%clk 0:02:59.1]} 2. c4 {[%clk 0:02:57]} 2...
e6 {[%clk 0:02:59.6]} 3. Nc3 {[%clk 0:02:56.4]} 3... Bb4 {[%clk 0:02:58.4]} 4.
e3 {[%clk 0:02:57.7]} 4... b6 {[%clk 0:02:58.1]} 5. f3 {[%clk 0:02:57.8]} 5...
c5 {[%clk 0:02:50.3]} 6. d5 {[%clk 0:02:54.1]} 6... O-O {[%clk 0:02:38.5]} 7. e4
{[%clk 0:02:53]} 7... exd5 {[%clk 0:02:35]} 8. cxd5 {[%clk 0:02:49]} 8... d6
{[%clk 0:02:11.1]} 9. Ne2 {[%clk 0:02:33.8]} 9... Ba6 {[%clk 0:02:07.2]} 10. Ng3
{[%clk 0:02:25.2]} 10... Bxf1 {[%clk 0:02:07.3]} 11. Kxf1 {[%clk 0:02:27.1]}
11... Nbd7 {[%clk 0:02:03.4]} 12. Kf2 {[%clk 0:02:23]} 12... Ne5 {[%clk
0:02:01.7]} 13. Rf1 {[%clk 0:02:10.2]} 13... c4 {[%clk 0:01:57.9]} 14. Kg1
{[%clk 0:02:06.5]} 14... Bc5+ {[%clk 0:01:57.9]} 15. Kh1 {[%clk 0:02:03.6]}
15... Nd3 {[%clk 0:01:59.5]} 16. Qd2 {[%clk 0:02:00]} 16... Rb8 {[%clk
0:01:51.9]} 17. b3 {[%clk 0:01:43.9]} 17... b5 {[%clk 0:01:48.8]} 18. Nxb5
{[%clk 0:01:30.6]} 18... Nf2+ {[%clk 0:00:29.6]} 19. Rxf2 {[%clk 0:01:30.5]}
19... Bxf2 {[%clk 0:00:31.5]} 20. Qxf2 {[%clk 0:01:16.2]} 20... Rxb5 {[%clk
0:00:30.9]} 21. bxc4 {[%clk 0:01:17.5]} 21... Rc5 {[%clk 0:00:31]} 22. Nf5
{[%clk 0:01:12.4]} 22... Rxc4 {[%clk 0:00:24.5]} 23. Bb2 {[%clk 0:00:33.1]}
23... Ne8 {[%clk 0:00:04.3]} 24. Qxa7 {[%clk 0:00:13.4]} 24... f6 {[%clk
0:00:04.4]} 25. a4 {[%clk 0:00:11]} 25... Rf7 {[%clk 0:00:05.7]} 26. Qf2 {[%clk
0:00:09.3]} 26... Rb7 {[%clk 0:00:07.1]} 27. a5 {[%clk 0:00:10.4]} 27... Rcb4
{[%clk 0:00:07.4]} 28. Bc3 {[%clk 0:00:02.3]} 28... Rb1+ {[%clk 0:00:08.2]} 0-1

[Event "*** Qualifier 2: Titled Tuesday 3|2 Blitz"]
[Site "Chess.com"]
[Date "2017.04.11"]
[Round "7"]
[White "proxy6"]
[Black "Th3ChessViking"]
[Result "0-1"]
[WhiteElo "2204"]
[BlackElo "2291"]
[TimeControl "180+2"]
[EndTime "14:40:14 PDT"]
[Termination "Th3ChessViking won on time"]

1. e4 {[%clk 0:03:02]} 1... e6 {[%clk 0:02:52.2]} 2. d4 {[%clk 0:02:57.9]} 2...
d5 {[%clk 0:02:52]} 3. Nc3 {[%clk 0:02:58.6]} 3... Bb4 {[%clk 0:02:50.6]} 4. e5
{[%clk 0:02:59.2]} 4... c5 {[%clk 0:02:51.1]} 5. a3 {[%clk 0:03:00.3]} 5...
Bxc3+ {[%clk 0:02:50]} 6. bxc3 {[%clk 0:03:02.2]} 6... Ne7 {[%clk 0:02:44.9]} 7.
h4 {[%clk 0:03:01.8]} 7... Qa5 {[%clk 0:02:39.3]} 8. Bd2 {[%clk 0:03:02]} 8...
Qa4 {[%clk 0:02:38]} 9. h5 {[%clk 0:03:01.5]} 9... h6 {[%clk 0:02:37.7]} 10. Rh4
{[%clk 0:02:56.2]} 10... cxd4 {[%clk 0:02:26]} 11. cxd4 {[%clk 0:02:55.8]} 11...
b6 {[%clk 0:02:26.2]} 12. Rf4 {[%clk 0:02:14.5]} 12... Ba6 {[%clk 0:02:22.4]}
13. Nf3 {[%clk 0:02:14]} 13... Bxf1 {[%clk 0:02:21.2]} 14. Kxf1 {[%clk
0:02:15.9]} 14... Nbc6 {[%clk 0:02:22.4]} 15. g4 {[%clk 0:02:08.9]} 15... Rf8
{[%clk 0:02:19.1]} 16. Kg2 {[%clk 0:02:06.5]} 16... Kd7 {[%clk 0:02:19.6]} 17.
Qb1 {[%clk 0:01:49]} 17... Rac8 {[%clk 0:02:16.8]} 18. Bb4 {[%clk 0:01:44]}
18... Qb5 {[%clk 0:01:27.8]} 19. c3 {[%clk 0:01:27]} 19... Rc7 {[%clk
0:00:59.8]} 20. a4 {[%clk 0:01:21.9]} 20... Qa6 {[%clk 0:00:49.6]} 21. Bd6
{[%clk 0:01:11.2]} 21... Rcc8 {[%clk 0:00:47.4]} 22. Nd2 {[%clk 0:01:06.3]}
22... Qe2 {[%clk 0:00:38.8]} 23. Ra2 {[%clk 0:01:00.2]} 23... Qa6 {[%clk
0:00:19.8]} 24. Qb2 {[%clk 0:00:52.9]} 24... f6 {[%clk 0:00:18.2]} 25. exf6
{[%clk 0:00:34.6]} 25... Kxd6 {[%clk 0:00:18]} 26. Qa3+ {[%clk 0:00:19.9]} 26...
Kd7 {[%clk 0:00:18.5]} 27. Nf3 {[%clk 0:00:16.4]} 27... Rxf6 {[%clk 0:00:17]}
28. Rxf6 {[%clk 0:00:17]} 28... gxf6 {[%clk 0:00:18.9]} 29. Ra1 {[%clk 0:00:15]}
29... Rg8 {[%clk 0:00:19.6]} 30. Nh2 {[%clk 0:00:11.9]} 30... Qd3 {[%clk
0:00:20]} 31. Re1 {[%clk 0:00:12.4]} 31... Nxd4 {[%clk 0:00:18.7]} 32. Qc1
{[%clk 0:00:07.3]} 32... Ne2 {[%clk 0:00:18.6]} 33. Qb2 {[%clk 0:00:04.1]} 33...
Nf4+ {[%clk 0:00:18]} 34. Kg1 {[%clk 0:00:04.2]} 34... Qh3 {[%clk 0:00:17.2]}
35. f3 {[%clk 0:00:03.8]} 35... Nxh5 {[%clk 0:00:13.8]} 0-1

[Event "*** Qualifier 2: Titled Tuesday 3|2 Blitz"]
[Site "Chess.com"]
[Date "2017.04.11"]
[Round "7"]
[White "jefferyx"]
[Black "sergiochess83"]
[Result "0-1"]
[WhiteElo "2635"]
[BlackElo "2614"]
[TimeControl "180+2"]
[EndTime "14:40:24 PDT"]
[Termination "sergiochess83 won by resignation"]

1. e4 {[%clk 0:02:58.7]} 1... c6 {[%clk 0:03:01.1]} 2. Nf3 {[%clk 0:02:58.1]}
2... d5 {[%clk 0:03:03]} 3. Nc3 {[%clk 0:02:58.1]} 3... Bg4 {[%clk 0:03:03]} 4.
h3 {[%clk 0:02:58.6]} 4... Bxf3 {[%clk 0:03:03.2]} 5. Qxf3 {[%clk 0:03:00.5]}
5... e6 {[%clk 0:03:04.5]} 6. d4 {[%clk 0:03:00.3]} 6... dxe4 {[%clk 0:02:59.6]}
7. Qxe4 {[%clk 0:03:00.8]} 7... Nd7 {[%clk 0:02:54]} 8. g3 {[%clk 0:03:00.5]}
8... g6 {[%clk 0:02:49.5]} 9. Bg2 {[%clk 0:03:01.3]} 9... Bg7 {[%clk 0:02:50.8]}
10. O-O {[%clk 0:03:00.1]} 10... Ne7 {[%clk 0:02:52]} 11. Ne2 {[%clk 0:02:57.7]}
11... O-O {[%clk 0:02:52.3]} 12. c4 {[%clk 0:02:58.8]} 12... Nf6 {[%clk
0:02:50.3]} 13. Qc2 {[%clk 0:02:59.2]} 13... Nf5 {[%clk 0:02:49.4]} 14. Rd1
{[%clk 0:02:59.6]} 14... Qb6 {[%clk 0:02:39.1]} 15. b3 {[%clk 0:02:40.7]} 15...
Rad8 {[%clk 0:02:37.8]} 16. Bb2 {[%clk 0:02:42]} 16... h5 {[%clk 0:02:31.3]} 17.
Bc3 {[%clk 0:02:41.7]} 17... Rd7 {[%clk 0:02:27.3]} 18. b4 {[%clk 0:02:38.7]}
18... Rfd8 {[%clk 0:02:23.3]} 19. a4 {[%clk 0:02:39.5]} 19... Qc7 {[%clk
0:02:17.2]} 20. a5 {[%clk 0:02:15.4]} 20... Ne8 {[%clk 0:02:06.5]} 21. Qb2
{[%clk 0:02:02.2]} 21... Ned6 {[%clk 0:02:02.9]} 22. Qb3 {[%clk 0:02:02.8]}
22... b5 {[%clk 0:01:36.3]} 23. axb6 {[%clk 0:02:03.2]} 23... axb6 {[%clk
0:01:37.2]} 24. Ra6 {[%clk 0:01:57.8]} 24... Nc8 {[%clk 0:01:30.2]} 25. d5
{[%clk 0:01:46.7]} 25... exd5 {[%clk 0:01:20.2]} 26. cxd5 {[%clk 0:01:47.7]}
26... cxd5 {[%clk 0:01:20.1]} 27. Bxg7 {[%clk 0:01:48.4]} 27... Kxg7 {[%clk
0:01:13.7]} 28. Rxd5 {[%clk 0:01:28.4]} 28... Rxd5 {[%clk 0:01:09.8]} 29. Bxd5
{[%clk 0:01:30.3]} 29... Qe5 {[%clk 0:01:09.3]} 30. Bf3 {[%clk 0:01:30]} 30...
Rd2 {[%clk 0:00:50.5]} 31. Ra2 {[%clk 0:01:18.6]} 31... Rxa2 {[%clk 0:00:44.4]}
32. Qxa2 {[%clk 0:01:20.5]} 32... h4 {[%clk 0:00:36]} 33. g4 {[%clk 0:01:21.1]}
33... Nd4 {[%clk 0:00:37.2]} 34. Nxd4 {[%clk 0:01:21.4]} 34... Qxd4 {[%clk
0:00:39]} 35. Qb3 {[%clk 0:01:00.6]} 35... Nd6 {[%clk 0:00:39.6]} 36. Kg2 {[%clk
0:01:02.1]} 36... Nc4 {[%clk 0:00:38.7]} 37. b5 {[%clk 0:00:35.8]} 37... Ne5
{[%clk 0:00:37.8]} 38. Qd5 {[%clk 0:00:33.6]} 38... Qxd5 {[%clk 0:00:32.8]} 39.
Bxd5 {[%clk 0:00:35.5]} 39... g5 {[%clk 0:00:32.3]} 40. Kf1 {[%clk 0:00:33.7]}
40... Nd3 {[%clk 0:00:32]} 41. Bh1 {[%clk 0:00:08]} 41... Nf4 {[%clk 0:00:31.9]}
42. Ke1 {[%clk 0:00:08.1]} 42... Kf6 {[%clk 0:00:28.7]} 43. Kd2 {[%clk
0:00:09.4]} 43... Ke5 {[%clk 0:00:29.6]} 44. Ke3 {[%clk 0:00:10.9]} 44... Nxh3
{[%clk 0:00:30.2]} 45. Bc6 {[%clk 0:00:11.4]} 45... Nf4 {[%clk 0:00:30.1]} 0-1